[Event "Championnat du monde jeunes U10"]
[Date "2024.11.22"]
[White "Perez Solanas, Hugo"]
[Black "Xia, Joshua"]
[WhiteElo "1824"]
[BlackElo "2052"]
[Round "7.8"]
[Result "0-1"]
[TimeControl "5400+30"]

1. e4 {[%clk 1:30:57]} 1... c5 {[%clk 1:30:57]} 2. Nf3 {[%clk 1:31:15]} 2... d6
{[%clk 1:31:23]} 3. d4 {[%clk 1:31:34]} 3... cxd4 {[%clk 1:31:44]} 4. Nxd4
{[%clk 1:31:55]} 4... Nf6 {[%clk 1:32:09]} 5. Nc3 {[%clk 1:32:11]} 5... a6
{[%clk 1:32:28]} 6. f3 {[%clk 1:32:33]} 6... e5 {[%clk 1:32:51]} 7. Nb3 {[%clk
1:32:54]} 7... h5 {[%clk 1:33:01]} 8. Be3 {[%clk 1:33:01]} 8... Be6 {[%clk
1:33:22]} 9. Nd5 {[%clk 1:32:44]} 9... Nbd7 {[%clk 1:32:51]} 10. Qd2 {[%clk
1:32:23]} 10... Bxd5 {[%clk 1:30:59]} 11. exd5 {[%clk 1:32:41]} 11... Nb6 {[%clk
1:29:57]} 12. c4 {[%clk 1:32:21]} 12... g6 {[%clk 1:25:06]} 13. Qb4 {[%clk
1:25:17]} 13... Nfd7 {[%clk 1:24:44]} 14. Bd3 {[%clk 1:22:09]} 14... Qc7 {[%clk
1:13:10]} 15. O-O {[%clk 1:17:34]} 15... Bg7 {[%clk 1:07:49]} 16. Bg5 {[%clk
1:08:18]} 16... Nc5 {[%clk 1:06:15]} 17. Nxc5 {[%clk 1:06:16]} 17... Qxc5+
{[%clk 1:04:19]} 18. Qxc5 {[%clk 1:06:32]} 18... dxc5 {[%clk 1:04:42]} 19. Rfe1
{[%clk 1:01:44]} 19... Kd7 {[%clk 0:57:00]} 20. Rab1 {[%clk 0:48:04]} 20... Kc7
{[%clk 0:33:29]} 21. Bd2 {[%clk 0:41:46]} 21... Nd7 {[%clk 0:31:09]} 22. a4
{[%clk 0:38:00]} 22... a5 {[%clk 0:31:00]} 23. Bc3 {[%clk 0:37:43]} 23... b6
{[%clk 0:30:34]} 24. Rbd1 {[%clk 0:35:59]} 24... Kd6 {[%clk 0:30:09]} 25. Re2
{[%clk 0:29:34]} 25... Rae8 {[%clk 0:27:27]} 26. h3 {[%clk 0:21:45]} 26... Re7
{[%clk 0:24:09]} 27. Rde1 {[%clk 0:21:19]} 27... f5 {[%clk 0:24:07]} 28. b3
{[%clk 0:16:46]} 28... h4 {[%clk 0:21:46]} 29. Bd2 {[%clk 0:14:54]} 29... Bh6
{[%clk 0:18:55]} 30. Bxh6 {[%clk 0:13:12]} 30... Rxh6 {[%clk 0:19:16]} 31. Kf2
{[%clk 0:12:56]} 31... Nf6 {[%clk 0:18:58]} 32. f4 {[%clk 0:10:20]} 32... e4
{[%clk 0:19:12]} 33. Bc2 {[%clk 0:10:42]} 33... Nh5 {[%clk 0:18:37]} 34. Ke3
{[%clk 0:10:53]} 34... g5 {[%clk 0:18:13]} 35. fxg5 {[%clk 0:10:58]} 35... Rg6
{[%clk 0:18:29]} 36. Rf2 {[%clk 0:09:16]} 36... Rxg5 {[%clk 0:18:33]} 37. Ref1
{[%clk 0:06:52]} 37... f4+ {[%clk 0:18:38]} 38. Rxf4 {[%clk 0:06:48]} 38... Rg3+
{[%clk 0:18:46]} 39. Ke2 {[%clk 0:05:48]} 39... Nxf4+ {[%clk 0:19:02]} 40. Rxf4
{[%clk 0:06:09]} 40... Rxg2+ {[%clk 0:19:23]} 41. Kd1 {[%clk 0:06:29]} 41... e3
{[%clk 0:19:30]} 42. Be4 {[%clk 0:06:33]} 42... Rd2+ {[%clk 0:19:42]} 43. Ke1
{[%clk 0:06:33]} 43... Rd4 {[%clk 0:20:04]} 44. Rf6+ {[%clk 0:06:34]} 44... Ke5
{[%clk 0:20:17]} 45. d6 {[%clk 0:06:38]} 45... Kxf6 {[%clk 0:20:39]} 46. dxe7
{[%clk 0:07:00]} 46... Rxe4 {[%clk 0:21:05]} 0-1

[Variant "Standard"]
[Site "Europe Echecs"]

[Event "Championnat du monde jeunes U10"]
[Date "2024.11.22"]
[White "Chen, Chicheng Leon"]
[Black "Buklaho, Ignacy"]
[WhiteElo "1987"]
[BlackElo "1822"]
[Round "7.14"]
[Result "1/2-1/2"]
[TimeControl "5400+30"]

1. e4 {[%clk 1:30:58]} 1... c6 {[%clk 1:30:49]} 2. d4 {[%clk 1:31:21]} 2... d5
{[%clk 1:31:14]} 3. e5 {[%clk 1:31:43]} 3... Bf5 {[%clk 1:31:38]} 4. h4 {[%clk
1:31:58]} 4... h5 {[%clk 1:32:01]} 5. Bd3 {[%clk 1:32:10]} 5... Bxd3 {[%clk
1:32:23]} 6. Qxd3 {[%clk 1:32:34]} 6... Qa5+ {[%clk 1:32:45]} 7. Nd2 {[%clk
1:32:52]} 7... e6 {[%clk 1:32:40]} 8. Nf3 {[%clk 1:33:09]} 8... Ne7 {[%clk
1:32:58]} 9. O-O {[%clk 1:33:25]} 9... Nf5 {[%clk 1:33:22]} 10. Nb3 {[%clk
1:33:31]} 10... Qa6 {[%clk 1:33:40]} 11. Qd1 {[%clk 1:33:56]} 11... b6 {[%clk
1:34:00]} 12. Bg5 {[%clk 1:34:11]} 12... c5 {[%clk 1:32:53]} 13. dxc5 {[%clk
1:34:36]} 13... bxc5 {[%clk 1:28:31]} 14. Nbd2 {[%clk 1:35:01]} 14... Be7 {[%clk
1:18:44]} 15. Bxe7 {[%clk 1:31:45]} 15... Nxe7 {[%clk 1:19:05]} 16. c4 {[%clk
1:30:01]} 16... Nd7 {[%clk 1:04:22]} 17. Re1 {[%clk 1:27:25]} 17... O-O {[%clk
0:57:07]} 18. cxd5 {[%clk 1:17:01]} 18... Nxd5 {[%clk 0:56:56]} 19. Ne4 {[%clk
1:13:00]} 19... g6 {[%clk 0:53:33]} 20. Qc1 {[%clk 0:58:25]} 20... Kg7 {[%clk
0:49:28]} 21. Qg5 {[%clk 0:44:31]} 21... Qb6 {[%clk 0:45:12]} 22. b3 {[%clk
0:40:00]} 22... Qd8 {[%clk 0:40:40]} 23. Qg3 {[%clk 0:33:37]} 23... Qe7 {[%clk
0:37:19]} 24. Nd6 {[%clk 0:31:33]} 24... Rad8 {[%clk 0:33:41]} 25. Nd2 {[%clk
0:26:22]} 25... Nb4 {[%clk 0:19:58]} 26. Rac1 {[%clk 0:16:36]} 26... Kg8 {[%clk
0:14:45]} 27. N2c4 {[%clk 0:14:12]} 27... Nb6 {[%clk 0:13:27]} 28. a3 {[%clk
0:11:35]} 28... Nc6 {[%clk 0:12:02]} 29. b4 {[%clk 0:06:47]} 29... Nxc4 {[%clk
0:09:28]} 30. Rxc4 {[%clk 0:07:11]} 30... Nxe5 {[%clk 0:07:55]} 31. Qxe5 {[%clk
0:07:15]} 31... Qxd6 {[%clk 0:08:07]} 32. Qxd6 {[%clk 0:07:24]} 32... Rxd6
{[%clk 0:08:23]} 33. Rxc5 {[%clk 0:07:48]} 33... Ra6 {[%clk 0:08:26]} 34. Ra1
{[%clk 0:06:31]} 34... Rb8 {[%clk 0:08:27]} 35. Rcc1 {[%clk 0:05:40]} 35... Ra4
{[%clk 0:08:32]} 36. g3 {[%clk 0:05:52]} 36... Kg7 {[%clk 0:08:13]} 37. Kg2
{[%clk 0:06:00]} 37... a5 {[%clk 0:07:17]} 38. bxa5 {[%clk 0:06:21]} 38... Rxa5
{[%clk 0:07:24]} 39. Rc3 {[%clk 0:06:30]} 39... Ra4 {[%clk 0:06:42]} 40. Kf3
{[%clk 0:06:38]} 40... Rb5 {[%clk 0:06:38]} 41. Re3 {[%clk 0:06:27]} 41... Kf6
{[%clk 0:06:22]} 1/2-1/2

[Variant "Standard"]
[Site "Europe Echecs"]

[Event "Championnat du monde jeunes U10"]
[Date "2024.11.22"]
[White "Chakhalov, Mikael"]
[Black "Anetov, Amirzhan"]
[WhiteElo "1962"]
[BlackElo "1767"]
[Round "7.15"]
[Result "0-1"]
[TimeControl "5400+30"]

1. d4 {[%clk 1:30:56]} 1... d5 {[%clk 1:30:57]} 2. c4 {[%clk 1:31:21]} 2... dxc4
{[%clk 1:31:22]} 3. e3 {[%clk 1:31:36]} 3... e5 {[%clk 1:31:41]} 4. dxe5 {[%clk
1:31:38]} 4... Qxd1+ {[%clk 1:32:05]} 5. Kxd1 {[%clk 1:32:05]} 5... Nc6 {[%clk
1:31:57]} 6. Bxc4 {[%clk 1:26:22]} 6... Nxe5 {[%clk 1:32:20]} 7. Be2 {[%clk
1:25:13]} 7... Bf5 {[%clk 1:32:13]} 8. Nf3 {[%clk 1:21:50]} 8... O-O-O+ {[%clk
1:29:57]} 9. Nbd2 {[%clk 1:19:17]} 9... Nc6 {[%clk 1:29:41]} 10. a3 {[%clk
1:13:47]} 10... Nf6 {[%clk 1:29:37]} 11. Ke1 {[%clk 1:13:07]} 11... Bd6 {[%clk
1:24:44]} 12. Nc4 {[%clk 1:09:35]} 12... Rhe8 {[%clk 1:21:04]} 13. b4 {[%clk
1:04:46]} 13... Ng4 {[%clk 1:17:45]} 14. Bb2 {[%clk 1:01:14]} 14... Nge5 {[%clk
1:15:22]} 15. Rd1 {[%clk 0:54:18]} 15... Nxc4 {[%clk 1:10:40]} 16. Bxc4 {[%clk
0:54:46]} 16... f6 {[%clk 1:10:59]} 17. Bb5 {[%clk 0:45:46]} 17... Be4 {[%clk
1:08:59]} 18. Nd4 {[%clk 0:40:24]} 18... Nxd4 {[%clk 1:05:20]} 19. Bxd4 {[%clk
0:39:24]} 19... c6 {[%clk 1:05:05]} 20. Be2 {[%clk 0:38:56]} 20... Kb8 {[%clk
1:04:22]} 21. Bf3 {[%clk 0:37:09]} 21... Bxf3 {[%clk 1:04:17]} 22. gxf3 {[%clk
0:37:36]} 22... Be5 {[%clk 1:03:55]} 23. Bxe5+ {[%clk 0:37:06]} 23... fxe5
{[%clk 1:04:23]} 24. Rg1 {[%clk 0:33:37]} 24... Rxd1+ {[%clk 1:04:36]} 25. Kxd1
{[%clk 0:34:06]} 25... g6 {[%clk 1:04:01]} 26. Ke2 {[%clk 0:33:39]} 26... Re6
{[%clk 0:57:25]} 27. Kd3 {[%clk 0:31:07]} 27... Rf6 {[%clk 0:53:33]} 28. Ke4
{[%clk 0:30:59]} 28... Rf5 {[%clk 0:53:57]} 29. h4 {[%clk 0:29:49]} 29... Kc7
{[%clk 0:46:40]} 30. Rg5 {[%clk 0:25:40]} 30... Rxg5 {[%clk 0:47:03]} 31. hxg5
{[%clk 0:26:08]} 31... Kd6 {[%clk 0:47:28]} 32. f4 {[%clk 0:26:19]} 32... exf4
{[%clk 0:47:39]} 33. Kxf4 {[%clk 0:25:50]} 33... Kd5 {[%clk 0:48:04]} 34. f3
{[%clk 0:22:05]} 34... b6 {[%clk 0:47:31]} 35. Kg3 {[%clk 0:22:16]} 35... Ke5
{[%clk 0:47:30]} 36. e4 {[%clk 0:21:23]} 36... c5 {[%clk 0:47:47]} 37. bxc5
{[%clk 0:21:37]} 37... bxc5 {[%clk 0:48:13]} 38. Kf2 {[%clk 0:21:47]} 38... Kf4
{[%clk 0:48:39]} 39. Ke2 {[%clk 0:21:51]} 39... Kxg5 {[%clk 0:49:00]} 40. Kd3
{[%clk 0:20:11]} 40... h5 {[%clk 0:48:04]} 41. Kc4 {[%clk 0:20:20]} 41... h4
{[%clk 0:48:29]} 42. e5 {[%clk 0:20:17]} 42... h3 {[%clk 0:48:55]} 0-1

[Variant "Standard"]
[Site "Europe Echecs"]

[Event "Championnat du monde jeunes U10"]
[Date "2024.11.22"]
[White "Ramesan, Raunak Amit"]
[Black "Deepak Ambattu, Rithvik"]
[WhiteElo "1802"]
[BlackElo "2063"]
[Round "7.21"]
[Result "1-0"]
[TimeControl "5400+30"]

1. e4 {[%clk 1:30:55]} 1... c5 {[%clk 1:30:49]} 2. Nf3 {[%clk 1:31:23]} 2... d6
{[%clk 1:31:13]} 3. d4 {[%clk 1:31:50]} 3... cxd4 {[%clk 1:31:37]} 4. Nxd4
{[%clk 1:32:17]} 4... Nf6 {[%clk 1:31:46]} 5. Nc3 {[%clk 1:32:44]} 5... a6
{[%clk 1:32:11]} 6. Bg5 {[%clk 1:33:11]} 6... e6 {[%clk 1:32:35]} 7. f4 {[%clk
1:33:37]} 7... Be7 {[%clk 1:32:44]} 8. Qf3 {[%clk 1:33:49]} 8... Qc7 {[%clk
1:33:10]} 9. O-O-O {[%clk 1:33:33]} 9... Nbd7 {[%clk 1:33:07]} 10. g4 {[%clk
1:32:00]} 10... b5 {[%clk 1:32:31]} 11. Bxf6 {[%clk 1:28:44]} 11... Nxf6 {[%clk
1:32:54]} 12. g5 {[%clk 1:29:03]} 12... Nd7 {[%clk 1:33:17]} 13. f5 {[%clk
1:24:19]} 13... Bxg5+ {[%clk 1:33:39]} 14. Kb1 {[%clk 1:24:45]} 14... Ne5 {[%clk
1:33:09]} 15. Qh5 {[%clk 1:24:17]} 15... h6 {[%clk 1:32:54]} 16. Nxe6 {[%clk
1:23:03]} 16... Bxe6 {[%clk 1:33:08]} 17. fxe6 {[%clk 1:23:28]} 17... g6 {[%clk
1:33:12]} 18. exf7+ {[%clk 1:23:49]} 18... Kxf7 {[%clk 1:33:28]} 19. Qe2 {[%clk
1:21:32]} 19... Qd8 {[%clk 1:33:13]} 20. Qf2+ {[%clk 1:19:53]} 20... Kg7 {[%clk
1:10:48]} 21. Qd4 {[%clk 1:15:06]} 21... Be7 {[%clk 1:02:12]} 22. Bh3 {[%clk
1:03:49]} 22... Rf8 {[%clk 0:40:14]} 23. Nd5 {[%clk 0:59:40]} 23... Bf6 {[%clk
0:30:32]} 24. Nf4 {[%clk 0:55:02]} 24... Re8 {[%clk 0:24:29]} 25. Rhg1 {[%clk
0:48:07]} 25... Kh7 {[%clk 0:20:02]} 26. Qd5 {[%clk 0:44:26]} 26... Qe7 {[%clk
0:16:24]} 27. Nxg6 {[%clk 0:42:54]} 27... Nxg6 {[%clk 0:16:36]} 28. Bf5 {[%clk
0:43:20]} 28... Kh8 {[%clk 0:12:07]} 29. Rxg6 {[%clk 0:42:36]} 29... Qf8 {[%clk
0:11:44]} 30. Rdg1 {[%clk 0:39:17]} 30... Ra7 {[%clk 0:09:48]} 31. Be6 {[%clk
0:38:46]} 31... Bg7 {[%clk 0:09:21]} 32. Qd3 {[%clk 0:32:13]} 32... Qf4 {[%clk
0:07:46]} 33. Qd5 {[%clk 0:23:28]} 33... Rc7 {[%clk 0:05:08]} 34. Qh5 {[%clk
0:19:38]} 34... Rf8 {[%clk 0:04:13]} 35. Bf5 {[%clk 0:18:36]} 35... Qd2 {[%clk
0:00:42]} 36. R6g2 {[%clk 0:17:46]} 36... Qd4 {[%clk 0:00:35]} 37. Rxg7 {[%clk
0:17:19]} 37... Rxg7 {[%clk 0:00:57]} 38. Qxh6+ {[%clk 0:17:43]} 38... Kg8
{[%clk 0:01:24]} 39. Be6+ {[%clk 0:17:35]} 39... Rf7 {[%clk 0:01:49]} 40. Rxg7+
{[%clk 0:17:47]} 1-0

[Variant "Standard"]
[Site "Europe Echecs"]

[Event "Championnat du monde jeunes U10"]
[Date "2024.11.22"]
[White "Blekh, Erik"]
[Black "Annapureddy, Rheyansh Reddy"]
[WhiteElo "1790"]
[BlackElo "2122"]
[Round "7.22"]
[Result "0-1"]
[TimeControl "5400+30"]

1. Nf3 {[%clk 1:30:55]} 1... Nf6 {[%clk 1:30:36]} 2. g3 {[%clk 1:31:07]} 2... g6
{[%clk 1:30:59]} 3. b3 {[%clk 1:31:12]} 3... Bg7 {[%clk 1:31:18]} 4. Bb2 {[%clk
1:31:30]} 4... O-O {[%clk 1:31:42]} 5. Bg2 {[%clk 1:31:52]} 5... c5 {[%clk
1:31:54]} 6. c4 {[%clk 1:31:16]} 6... d6 {[%clk 1:32:11]} 7. d4 {[%clk 1:30:45]}
7... d5 {[%clk 1:31:43]} 8. Nbd2 {[%clk 1:30:10]} 8... dxc4 {[%clk 1:30:04]} 9.
Nxc4 {[%clk 1:29:40]} 9... Be6 {[%clk 1:27:19]} 10. Ncd2 {[%clk 1:27:05]} 10...
Nc6 {[%clk 1:25:21]} 11. dxc5 {[%clk 1:23:14]} 11... Qa5 {[%clk 1:23:35]} 12.
O-O {[%clk 1:18:47]} 12... Rfd8 {[%clk 1:19:56]} 13. Qc1 {[%clk 1:13:03]} 13...
Rac8 {[%clk 1:17:49]} 14. Bc3 {[%clk 1:10:20]} 14... Qxc5 {[%clk 1:17:36]} 15.
Qb2 {[%clk 1:09:42]} 15... b5 {[%clk 1:16:57]} 16. b4 {[%clk 1:02:32]} 16... Qh5
{[%clk 1:15:09]} 17. h4 {[%clk 0:58:56]} 17... h6 {[%clk 1:11:20]} 18. a4 {[%clk
0:53:03]} 18... a5 {[%clk 1:08:42]} 19. Nd4 {[%clk 0:40:34]} 19... axb4 {[%clk
0:55:34]} 20. Nxc6 {[%clk 0:38:38]} 20... bxc3 {[%clk 0:55:47]} 21. Qxb5 {[%clk
0:36:37]} 21... Rxc6 {[%clk 0:51:48]} 22. Qxc6 {[%clk 0:35:15]} 22... cxd2
{[%clk 0:51:45]} 23. a5 {[%clk 0:28:49]} 23... Nd5 {[%clk 0:48:33]} 24. a6
{[%clk 0:22:16]} 24... Bxa1 {[%clk 0:43:14]} 25. a7 {[%clk 0:21:51]} 25... Bd4
{[%clk 0:41:16]} 26. a8=Q {[%clk 0:20:16]} 26... Rxa8 {[%clk 0:40:35]} 27. Qxa8+
{[%clk 0:20:39]} 27... Kh7 {[%clk 0:40:44]} 28. Qa4 {[%clk 0:19:03]} 28... Nc3
{[%clk 0:40:47]} 29. Qc2 {[%clk 0:18:50]} 29... Qxe2 {[%clk 0:40:34]} 0-1

[Variant "Standard"]
[Site "Europe Echecs"]

[Event "Championnat du monde jeunes U10"]
[Date "2024.11.22"]
[White "Liu, Liam"]
[Black "Ten Dam, Bram"]
[WhiteElo "1783"]
[BlackElo "2012"]
[Round "7.23"]
[Result "1-0"]
[TimeControl "5400+30"]

1. e4 {[%clk 1:30:46]} 1... c5 {[%clk 1:30:45]} 2. c3 {[%clk 1:31:07]} 2... Nf6
{[%clk 1:31:10]} 3. e5 {[%clk 1:31:28]} 3... Nd5 {[%clk 1:31:33]} 4. d4 {[%clk
1:31:47]} 4... cxd4 {[%clk 1:31:35]} 5. cxd4 {[%clk 1:32:05]} 5... d6 {[%clk
1:31:12]} 6. Bc4 {[%clk 1:32:26]} 6... Nb6 {[%clk 1:31:32]} 7. Bb3 {[%clk
1:32:52]} 7... dxe5 {[%clk 1:29:29]} 8. Qh5 {[%clk 1:32:48]} 8... e6 {[%clk
1:29:49]} 9. dxe5 {[%clk 1:33:10]} 9... Nc6 {[%clk 1:29:44]} 10. Nc3 {[%clk
1:32:44]} 10... Qd3 {[%clk 1:13:15]} 11. Bf4 Bb4 {[%clk 1:08:15]} 12. Ne2 {[%clk
1:21:10]} 12... Nd5 {[%clk 0:46:36]} 13. Bxd5 {[%clk 1:10:56]} 13... Qxd5 {[%clk
0:43:28]} 14. O-O {[%clk 1:06:56]} 14... Qd3 {[%clk 0:40:46]} 15. a3 {[%clk
1:03:48]} 15... Be7 {[%clk 0:39:19]} 16. Rfd1 {[%clk 1:01:43]} 16... Qg6 {[%clk
0:36:49]} 17. Qh3 {[%clk 0:55:31]} 17... a6 {[%clk 0:33:36]} 18. Rd3 {[%clk
0:48:07]} 18... h5 {[%clk 0:26:51]} 19. Rad1 {[%clk 0:41:27]} 19... b5 {[%clk
0:24:16]} 20. Qf3 {[%clk 0:34:27]} 20... Bb7 {[%clk 0:12:42]} 21. Rd7 {[%clk
0:33:58]} 21... Rc8 {[%clk 0:08:13]} 22. Rxb7 {[%clk 0:33:32]} 22... O-O {[%clk
0:08:01]} 23. Rbd7 {[%clk 0:33:41]} 23... Bc5 {[%clk 0:07:50]} 24. Qe4 {[%clk
0:29:37]} 24... f5 {[%clk 0:06:45]} 25. Qf3 {[%clk 0:29:06]} 25... h4 {[%clk
0:05:32]} 26. Qh3 {[%clk 0:22:46]} 26... Qh5 {[%clk 0:04:53]} 27. Qf3 {[%clk
0:23:05]} 27... Qe8 {[%clk 0:04:38]} 28. R7d3 {[%clk 0:21:40]} 28... Be7 {[%clk
0:03:35]} 29. h3 {[%clk 0:21:41]} 29... g5 {[%clk 0:03:36]} 30. Bh2 {[%clk
0:22:02]} 30... Bc5 {[%clk 0:03:31]} 31. b4 {[%clk 0:21:54]} 31... Ba7 {[%clk
0:03:19]} 32. Rd7 {[%clk 0:19:25]} 32... Bb8 {[%clk 0:02:24]} 33. Qe3 {[%clk
0:18:22]} 33... Qg6 {[%clk 0:02:08]} 34. f4 {[%clk 0:13:55]} 34... g4 {[%clk
0:01:38]} 35. Kh1 {[%clk 0:13:57]} 35... Kh8 {[%clk 0:01:27]} 36. hxg4 {[%clk
0:13:20]} 36... fxg4 {[%clk 0:01:01]} 37. Qe4 {[%clk 0:12:41]} 37... Qh6 {[%clk
0:01:00]} 38. Rb7 {[%clk 0:09:53]} 38... Nd8 {[%clk 0:00:44]} 39. Re7 {[%clk
0:08:16]} 39... Nc6 {[%clk 0:01:05]} 40. Red7 {[%clk 0:07:52]} 40... g3 {[%clk
0:01:17]} 41. Bg1 {[%clk 0:08:11]} 41... Rg8 {[%clk 0:01:01]} 42. Rf7 {[%clk
0:06:00]} 42... Nd8 {[%clk 0:00:48]} 43. Rf6 {[%clk 0:06:17]} 43... Qh5 {[%clk
0:01:04]} 44. Qf3 {[%clk 0:05:54]} 44... Qh7 {[%clk 0:01:04]} 45. Ne4 {[%clk
0:05:48]} 45... Rc7 {[%clk 0:00:35]} 46. Ng5 {[%clk 0:05:47]} 46... Rxg5 {[%clk
0:00:38]} 47. fxg5 {[%clk 0:06:07]} 1-0

[Variant "Standard"]
[Site "Europe Echecs"]

[Event "Championnat du monde jeunes U10"]
[Date "2024.11.22"]
[White "Larion, Iustin"]
[Black "Babeikin, Kiryl"]
[WhiteElo "1925"]
[BlackElo "1721"]
[Round "7.25"]
[Result "0-1"]
[TimeControl "5400+30"]

1. d4 {[%clk 1:30:55]} 1... d5 {[%clk 1:30:54]} 2. Bg5 {[%clk 1:31:20]} 2... Nf6
{[%clk 1:31:17]} 3. e3 {[%clk 1:31:46]} 3... c5 {[%clk 1:31:30]} 4. Nd2 {[%clk
1:32:07]} 4... Nbd7 {[%clk 1:27:01]} 5. c3 {[%clk 1:30:25]} 5... Qb6 {[%clk
1:24:11]} 6. Rb1 {[%clk 1:28:27]} 6... e6 {[%clk 1:24:18]} 7. Bd3 {[%clk
1:27:26]} 7... e5 {[%clk 1:11:34]} 8. dxe5 {[%clk 1:25:11]} 8... Nxe5 {[%clk
1:11:42]} 9. Ndf3 {[%clk 1:23:52]} 9... Nxd3+ {[%clk 1:09:26]} 10. Qxd3 {[%clk
1:24:19]} 10... c4 {[%clk 1:08:39]} 11. Qd1 {[%clk 1:17:51]} 11... Bf5 {[%clk
1:07:10]} 12. Qa4+ {[%clk 1:07:39]} 12... Qc6 {[%clk 1:04:36]} 13. Qxc6+ {[%clk
1:07:56]} 13... bxc6 {[%clk 1:05:03]} 14. Rd1 {[%clk 1:08:12]} 14... Ne4 {[%clk
0:58:30]} 15. Ne2 {[%clk 1:01:48]} 15... Rb8 {[%clk 0:42:00]} 16. b3 {[%clk
0:55:11]} 16... cxb3 {[%clk 0:38:59]} 17. axb3 {[%clk 0:54:15]} 17... Bg4 {[%clk
0:36:01]} 18. Bf4 {[%clk 0:53:57]} 18... Rxb3 {[%clk 0:35:10]} 19. O-O {[%clk
0:54:15]} 19... Rb2 {[%clk 0:29:56]} 20. Ned4 {[%clk 0:54:02]} 20... c5 {[%clk
0:25:04]} 21. Nc6 {[%clk 0:54:18]} 21... Nxc3 {[%clk 0:23:58]} 22. Ra1 {[%clk
0:54:14]} 22... Ne2+ {[%clk 0:23:17]} 23. Kh1 {[%clk 0:54:42]} 23... Nxf4 {[%clk
0:23:39]} 24. Nfe5 {[%clk 0:48:34]} 24... Bd7 {[%clk 0:18:20]} 25. exf4 {[%clk
0:48:12]} 25... Bd6 {[%clk 0:08:39]} 26. Rfe1 {[%clk 0:44:17]} 26... Bxc6 {[%clk
0:08:08]} 27. Nd3+ {[%clk 0:44:08]} 27... Kd7 {[%clk 0:08:32]} 28. Nxb2 {[%clk
0:44:32]} 28... Ra8 {[%clk 0:08:58]} 29. Nd3 {[%clk 0:34:35]} 29... f6 {[%clk
0:09:12]} 30. f5 {[%clk 0:22:21]} 30... c4 {[%clk 0:06:17]} 31. Nc1 {[%clk
0:22:33]} 31... Bc5 {[%clk 0:04:12]} 32. Ne2 {[%clk 0:19:24]} 32... Re8 {[%clk
0:04:08]} 33. Nf4 {[%clk 0:18:25]} 33... Rxe1+ {[%clk 0:04:15]} 34. Rxe1 {[%clk
0:18:54]} 34... Bxf2 {[%clk 0:02:12]} 35. Rd1 {[%clk 0:19:23]} 35... d4 {[%clk
0:02:26]} 36. Ne2 {[%clk 0:18:24]} 36... d3 {[%clk 0:02:46]} 37. Nc3 {[%clk
0:18:37]} 37... Bd4 {[%clk 0:03:03]} 38. Nb1 {[%clk 0:18:43]} 38... Ba4 {[%clk
0:03:23]} 39. Rc1 {[%clk 0:19:04]} 39... c3 {[%clk 0:02:46]} 40. Nxc3 {[%clk
0:17:26]} 40... d2 {[%clk 0:03:11]} 41. Ne2 {[%clk 0:17:39]} 41... dxc1=Q+
{[%clk 0:03:29]} 42. Nxc1 {[%clk 0:17:54]} 42... Bc2 {[%clk 0:03:51]} 43. Ne2
{[%clk 0:18:19]} 43... Be5 {[%clk 0:04:12]} 44. g4 {[%clk 0:18:43]} 44... a5
{[%clk 0:04:38]} 45. Kg2 {[%clk 0:19:00]} 45... a4 {[%clk 0:05:03]} 46. Kf3
{[%clk 0:19:19]} 46... Bd1 {[%clk 0:05:27]} 47. Ke3 {[%clk 0:19:40]} 47... Bxe2
{[%clk 0:05:51]} 48. Kxe2 {[%clk 0:20:04]} 48... a3 {[%clk 0:06:16]} 49. h4
{[%clk 0:20:27]} 49... a2 {[%clk 0:06:44]} 50. g5 {[%clk 0:20:44]} 50... a1=Q
{[%clk 0:07:09]} 51. g6 {[%clk 0:20:35]} 51... h5 {[%clk 0:07:32]} 52. Kf2
{[%clk 0:20:45]} 52... Qb2+ {[%clk 0:07:56]} 53. Kf3 {[%clk 0:21:11]} 53... Qc3+
{[%clk 0:08:22]} 54. Ke4 {[%clk 0:21:30]} 54... Kc7 {[%clk 0:08:37]} 55. Kd5
{[%clk 0:21:44]} 55... Qc6# {[%clk 0:09:01]} 0-1

[Variant "Standard"]
[Site "Europe Echecs"]